bitfinex-derivatives/quotes_SOLF0:USTF0_20240924
["timestamp","ask_amount","ask_price","bid_price","bid_amount"]
[1727167926313,3.3739,148.21,148.16,15.9256]
[1727167926515,3.3739,148.21,148.17,3.3746]
[1727167927017,3.3739,148.2,148.16,15.9256]
[1727167927517,3.3742,148.19,148.16,15.9256]
[1727167927815,14.58,148.21,148.11,1.4258]
[1727167928019,3.3748,148.17,148.12,16.0034]
[1727167928312,14.58,148.21,148.12,16.0034]
[1727167928710,3.3747,148.17,148.12,16.0034]
[1727167928918,3.3747,148.17,148.13,3.3754]
[1727167929610,14.58,148.2,148.12,4.7991]
[1727167930017,3.3751,148.15,148.12,1.4234]
[1727167930814,3.3754,148.14,148.12,1.4234]
[1727167931418,3.3754,148.14,148.1,3.3761]
[1727167932018,3.3761,148.11,148.07,3.3769]
[1727167932224,3.3761,148.11,148.06,1.3758]
[1727167932726,14.58,148.15,148.06,15.9558]
[1727167932916,1.3113,148.16,148.1,14.58]
[1727167933115,14.58,148.2,148.12,14.58]
[1727167933319,3.375,148.16,148.12,17.9556]
[1727167933625,3.40964343,148.18,148.12,17.9556]
[1727167933825,3.375,148.16,148.12,17.9556]
[1727167934320,14.58,148.2,148.12,17.9556]
[1727167934525,3.3751,148.15,148.12,17.9556]
[1727167934922,3.3747,148.17,148.13,3.3754]
[1727167935328,14.58,148.2,148.13,3.3754]
[1727167936029,14.58,148.2,148.14,3.3752]
[1727167936232,3.3746,148.18,148.12,14.58]
[1727167936625,3.3746,148.18,148.13,3.3755]
[1727167938118,3.3746,148.17,148.13,3.3755]
[1727167939032,3.3751,148.16,148.12,14.58]
[1727167939536,14.58,148.2,148.12,14.58]
[1727167939727,3.3747,148.17,148.12,17.9556]
[1727167940325,14.58,148.2,148.11,3.3758]
[1727167940526,14.58,148.18,148.1,14.58]
[1727167940725,3.3748,148.17,148.1,14.58]
[1727167941128,3.3748,148.17,148.13,3.3755]
[1727167941329,3.3749,148.16,148.1,14.58]
[1727167941737,3.3749,148.16,148.12,3.3756]
[1727167943840,3.3749,148.16,148.13,3.3755]
[1727167944035,1.3113,148.22,148.15,14.58]
[1727167944337,15.8913,148.22,148.15,3.375]
[1727167944641,15.8913,148.22,148.13,14.58]
[1727167944642,3.3745,148.18,148.13,14.58]
[1727167945236,3.3747,148.17,148.14,3.3752]
[1727167945636,14.58,148.21,148.11,14.58]
[1727167946436,9.34,148.17,148.13,9.34]
[1727167946841,3.3749,148.16,148.13,12.7154]
[1727167947634,9.34,148.17,148.14,3.3753]
[1727167947941,9.34,148.15,148.06,1.3758]
[1727167948143,9.34,148.15,148.1,9.34]
[1727167948741,3.3754,148.14,148.1,12.716]
[1727167948945,3.3754,148.14,148.1,9.34]
[1727167949545,3.3754,148.14,148.11,3.3759]
[1727167949942,3.3758,148.12,148.06,1.3758]
[1727167950138,3.3758,148.12,148.08,12.7165]
[1727167950345,3.3761,148.11,148.08,12.7165]
[1727167950546,12.7161,148.11,148.08,12.7165]
[1727167951247,9.34,148.09,148.0,3.36132355]
[1727167951439,1.3603,148.15,148.06,9.34]
[1727167951646,9.34,148.11,148.07,9.34]
[1727167951844,3.3764,148.1,148.07,9.34]
[1727167952049,3.3764,148.1,148.06,9.34]
[1727167952238,3.3764,148.1,148.01,3.9772]
[1727167952441,14.58,148.11,148.02,14.58]
[1727167952641,4.71153269,148.15,148.02,14.58]
[1727167952844,3.3765,148.09,148.06,3.377]
[1727167953247,3.3765,148.09,148.04,14.58]
[1727167953248,14.58,148.13,148.04,14.58]
[1727167953443,14.58,148.11,148.02,14.58]
[1727167954249,3.3771,148.07,148.03,3.3778]
[1727167954847,3.3772,148.06,148.03,3.3778]
[1727167955048,14.58,148.09,148.01,6.0223]
[1727167955249,14.58,148.09,148.01,2.6441]
[1727167955445,3.3775,148.05,148.01,2.6441]
[1727167955859,14.58,148.09,148.01,2.6441]
[1727167956056,3.377,148.07,148.01,2.6441]
[1727167956247,14.58,148.07,147.99,1.4253]
[1727167956451,14.58,148.07,147.99,16.0053]
[1727167956954,3.3775,148.05,148.02,3.3779]
[1727167958757,14.58,148.09,148.01,14.58]
[1727167958959,14.58,148.11,148.03,14.58]
[1727167959151,3.3762,148.11,148.03,14.58]
[1727167959356,3.3762,148.11,148.07,3.3767]
[1727167959555,3.3762,148.11,148.05,14.58]
[1727167960162,14.58,148.13,148.05,14.58]
[1727167960868,14.58,148.12,148.04,1.3521]
[1727167961059,14.58,148.13,148.07,3.3768]
[1727167961561,3.3761,148.11,148.07,3.3768]
[1727167961756,14.58,148.13,148.08,3.3766]
[1727167962158,3.376,148.12,148.08,3.3766]
[1727167962458,14.58,148.13,148.05,14.58]
[1727167962660,17.9556,148.13,148.05,14.58]
[1727167962852,3.35123269,148.15,148.07,14.58]
[1727167963057,3.35123269,148.15,148.09,3.3764]
[1727167963263,3.3756,148.13,148.09,3.3764]
[1727167964051,15.9778,148.16,148.07,14.58]
[1727167964257,19.40660302,148.16,148.06,1.3263]
[1727167964564,3.3761,148.11,148.06,1.3263]
[1727167964758,14.58,148.13,148.06,1.3263]
[1727167965461,3.3761,148.11,148.08,3.3765]
[1727167968165,3.3759,148.12,148.06,1.3263]
[1727167968566,14.58,148.15,148.06,1.3263]
[1727167969066,3.3758,148.12,148.09,3.3762]
[1727167970365,14.58,148.15,148.08,3.3765]
[1727167970566,14.58,148.15,148.06,1.3263]
[1727167970771,14.58,148.15,148.07,14.58]
[1727167970968,3.3752,148.15,148.12,3.3757]
[1727167971171,1.3978,148.16,148.09,14.58]
[1727167971474,3.3755,148.14,148.11,3.3759]
[1727167971667,1.3978,148.16,148.09,14.58]
[1727167971973,3.3752,148.15,148.11,3.376]
[1727167972265,3.3752,148.15,148.11,9.34]
[1727167972862,3.3753,148.14,148.11,12.7159]
[1727167973363,3.3753,148.14,148.11,3.3759]
[1727167973566,3.3755,148.13,148.1,12.7161]
[1727167974264,3.3753,148.14,148.11,3.3759]
[1727167974464,15.9978,148.16,148.07,14.6]
[1727167975264,3.3757,148.13,148.1,3.3761]
[1727167977273,3.3753,148.14,148.07,14.6]
[1727167978169,15.9978,148.16,148.07,14.6]
[1727167978967,3.3755,148.13,148.1,3.376]
[1727167980164,3.3755,148.13,148.11,3.376]
[1727167980371,3.3754,148.14,148.11,3.376]
[1727167980975,3.3752,148.15,148.12,3.3757]
[1727167981179,1.3453,148.17,148.09,14.6]
[1727167981477,1.3453,148.17,148.1,1.3631]
[1727167981674,15.9468,148.2,148.11,14.6]
[1727167981978,15.9375,148.21,148.11,14.6]
[1727167982179,3.3746,148.17,148.14,3.3753]
[1727167983369,15.9375,148.21,148.13,14.6]
[1727167983977,15.9375,148.21,148.14,3.3752]
[1727167984678,3.3746,148.18,148.15,3.3751]
[1727167985884,3.3742,148.19,148.16,3.3748]
[1727167986281,1.3375,148.21,148.16,3.3748]
[1727167986584,3.374,148.2,148.17,3.3745]
[1727167987178,3.3738,148.21,148.18,3.3743]
[1727167987376,2.7579,148.25,148.16,14.6]
[1727167987377,18.7088,148.25,148.16,14.6]
[1727167987575,2.7859,148.25,148.18,14.6]
[1727167988383,3.3734,148.23,148.2,3.3738]
[1727167988576,2.7859,148.25,148.17,14.6]
[1727167988777,3.3739,148.2,148.17,3.3745]
[1727167989083,14.6,148.24,148.15,14.6]
[1727167989383,2.7859,148.25,148.17,14.6]
[1727167990281,3.3734,148.23,148.19,3.374]
[1727167990481,2.7859,148.25,148.17,16.0216]
[1727167990685,1.3509,148.25,148.17,16.0216]
[1727167990984,3.3732,148.24,148.2,3.3738]
[1727167991288,1.3509,148.25,148.2,3.3738]
[1727167991981,1.3509,148.25,148.21,3.3737]
[1727167992183,17.95774552,148.27,148.21,3.3737]
[1727167992388,17.95774552,148.27,148.17,17.3813]
[1727167992583,3.3733,148.23,148.2,3.3738]
[1727167993180,3.3735,148.22,148.17,17.3813]
[1727167993488,14.6,148.24,148.17,1.4216]
[1727167994281,14.6,148.24,148.17,4.7962]
[1727167994685,3.3739,148.21,148.17,4.7962]
[1727167995387,14.6,148.24,148.14,14.6]
[1727167996192,3.3739,148.21,148.17,3.3746]
[1727167996494,3.3739,148.21,148.17,9.33]
[1727167996987,14.98893472,148.27,148.2,9.33]
[1727167997290,9.33,148.27,148.22,9.33]
[1727167997594,9.33,148.25,148.21,12.7036]
[1727167998380,3.3732,148.24,148.21,9.33]
[1727168000593,9.33,148.25,148.21,9.33]
[1727168000991,3.3732,148.24,148.21,9.33]
[1727168001590,3.3737,148.22,148.13,6.04199649]
[1727168001788,3.3737,148.22,148.19,9.33]
[1727168002588,3.3737,148.22,148.19,12.7042]
[1727168004390,3.3738,148.21,148.19,12.7042]
[1727168006394,3.3739,148.2,148.13,6.04199649]
[1727168006692,3.3739,148.2,148.17,9.33]
[1727168007102,3.3739,148.2,148.17,12.7045]
[1727168007899,9.33,148.21,148.17,12.7045]
[1727168008102,10.7016,148.23,148.18,9.33]
[1727168008307,10.7016,148.23,148.18,12.7044]
[1727168008501,3.3738,148.21,148.18,12.7044]
[1727168012007,1.3716,148.23,148.2,3.3739]
[1727168012203,9.33,148.26,148.22,9.33]
[1727168012409,4.8225599,148.28,148.22,9.33]
[1727168012603,3.3731,148.24,148.22,9.33]
[1727168013710,3.3733,148.23,148.22,9.33]
[1727168014309,3.3731,148.24,148.22,9.33]
[1727168015112,3.3733,148.23,148.22,9.33]
[1727168017509,3.3733,148.23,148.13,5.9728085]
[1727168017510,3.3735,148.22,148.13,5.9728085]
[1727168017714,3.3735,148.22,148.21,9.33]
[1727168018702,3.3733,148.23,148.21,9.33]
[1727168018908,9.33,148.27,148.22,9.33]
[1727168019306,14.1525599,148.28,148.23,9.33]
[1727168019508,4.8225599,148.28,148.23,9.33]
[1727168019708,1.4233,148.28,148.25,9.33]
[1727168020525,3.31218359,148.3,148.26,9.33]
[1727168021319,67.91415488,148.31,148.26,9.33]
[1727168021505,3.372,148.29,148.26,12.7025]
[1727168021705,3.372,148.29,148.26,9.33]
[1727168022310,3.3717,148.3,148.27,9.33]
[1727168022616,3.3717,148.3,148.26,3.3725]
[1727168022617,3.3717,148.3,148.28,9.33]
[1727168023116,3.3715,148.31,148.28,9.33]
[1727168023311,3.2950862,148.33,148.28,9.33]
[1727168023517,3.3717,148.3,148.28,9.33]
[1727168023912,12.6250862,148.33,148.28,9.33]
[1727168024421,3.3716,148.31,148.28,9.33]
[1727168027114,58.55537433,148.39,148.22,4.1577]
[1727168027318,67.88537433,148.39,148.34,9.33]
[1727168028115,3.3702,148.37,148.34,9.33]
[1727168028317,9.33,148.38,148.33,9.33]
[1727168028619,24.25293844,148.38,148.33,9.33]
[1727168029322,9.33,148.36,148.32,9.33]
[1727168030528,3.3708,148.34,148.31,3.3714]
[1727168030925,14.92293844,148.37,148.31,3.3714]
[1727168030926,3.3706,148.35,148.31,3.3714]
[1727168031121,14.92293844,148.37,148.3,3.3716]
[1727168031422,14.58,148.38,148.29,17.2905]
[1727168031819,14.91977653,148.37,148.29,15.9671]
[1727168032023,3.3711,148.33,148.29,15.9671]
[1727168032220,14.58,148.38,148.29,19.3389]
[1727168032516,14.91622429,148.37,148.29,19.3389]
[1727168032827,3.3712,148.33,148.29,19.3389]
[1727168033225,14.58,148.36,148.29,14.58]
[1727168033428,14.58,148.36,148.28,1.323]
[1727168034024,14.58,148.36,148.28,4.695]
[1727168034025,3.3713,148.32,148.28,4.695]
[1727168035622,3.3715,148.31,148.28,4.695]
[1727168036528,3.3718,148.3,148.28,1.323]
[1727168036829,3.3718,148.3,148.27,17.9523]
[1727168037923,3.3719,148.29,148.27,14.58]
[1727168038328,3.3719,148.29,148.26,3.3725]
[1727168038927,3.3714,148.32,148.29,3.3718]
[1727168039229,1.304,148.34,148.27,14.58]
[1727168040536,1.304,148.34,148.29,14.58]
[1727168040928,3.3712,148.32,148.29,17.9518]
[1727168041123,1.304,148.34,148.28,14.58]
[1727168041834,3.4475548,148.33,148.28,14.58]
[1727168042031,3.3718,148.3,148.25,14.58]
[1727168042329,3.4475548,148.33,148.25,14.58]
[1727168042534,3.4475548,148.33,148.26,3.3725]
[1727168042834,3.4475548,148.33,148.25,14.58]
[1727168043331,3.4475548,148.33,148.24,15.9614]
[1727168043332,14.58,148.33,148.24,15.9614]
[1727168043525,19.35347942,148.33,148.24,15.9614]
[1727168043725,3.3725,148.27,148.24,19.3344]
[1727168044735,3.3726,148.26,148.24,15.9614]
[1727168046642,3.3724,148.27,148.24,19.3344]
[1727168048434,3.3726,148.26,148.24,19.3344]
[1727168048630,3.3726,148.26,148.24,15.9614]
[1727168051033,3.3728,148.25,148.24,14.58]
[1727168051225,3.3728,148.25,148.22,19.3506]
[1727168052330,3.3728,148.25,148.24,9.33]
[1727168052632,3.3731,148.24,148.23,9.33]
[1727168053640,9.33,148.28,148.23,9.33]
[1727168053641,3.3729,148.25,148.23,9.33]
[1727168054037,3.3727,148.26,148.24,9.33]
[1727168054236,9.33,148.28,148.24,9.33]
[1727168054633,3.3728,148.25,148.24,9.33]
[1727168055136,9.33,148.3,148.24,9.33]
[1727168055333,3.3727,148.26,148.24,9.33]
[1727168055733,9.33,148.3,148.24,9.33]
[1727168056127,3.3728,148.25,148.24,9.33]
[1727168056531,3.3731,148.24,148.23,9.33]
[1727168063134,3.3734,148.23,148.2,3.3739]
[1727168063335,3.3734,148.23,148.22,9.33]
[1727168064238,3.3731,148.24,148.22,9.33]
[1727168065848,14.97793322,148.29,148.23,9.33]
[1727168066049,4.77347942,148.33,148.28,9.33]
[1727168066050,14.10347942,148.33,148.28,9.33]
[1727168066244,14.99806669,148.32,148.28,9.33]
[1727168066547,3.3719,148.29,148.28,9.33]
[1727168067247,3.3722,148.28,148.27,9.33]
[1727168068447,3.372,148.29,148.27,9.33]
[1727168068843,14.99806669,148.31,148.28,9.33]
[1727168069043,213.0,148.18,147.97,100.88298592]
[1727168069249,1.304,148.34,148.05,7.04436805]
[1727168069250,1.3786,148.33,148.05,7.04436805]
[1727168069551,9.33,148.3,148.25,9.33]
[1727168069750,9.33,148.29,148.23,9.33]
[1727168070144,3.3725,148.27,148.23,9.33]
[1727168070443,3.3725,148.27,148.24,9.33]
[1727168070650,9.33,148.3,148.24,9.33]
[1727168070846,9.33,148.29,148.23,9.33]
[1727168071041,14.99972878,148.32,148.23,12.7032]
[1727168071243,10.7086,148.33,148.27,9.33]
[1727168071444,25.70727559,148.33,148.27,9.33]
[1727168071642,10.7086,148.33,148.27,9.33]
[1727168071850,9.33,148.32,148.27,9.33]
[1727168072451,3.3718,148.3,148.27,9.33]
[1727168075254,3.3718,148.3,148.29,9.33]
[1727168077662,3.3715,148.31,148.29,9.33]
[1727168077856,3.3715,148.31,148.3,9.33]
[1727168080361,15.00901159,148.34,148.3,9.33]
[1727168080662,67.88537433,148.39,148.33,9.33]
[1727168080858,26.49118116,148.38,148.33,9.33]
[1727168081062,18.42674075,148.38,148.33,9.33]
[1727168081266,3.3708,148.34,148.33,9.33]
[1727168085964,3.3708,148.34,148.28,4.77074385]
[1727168085965,3.371,148.33,148.32,9.33]
[1727168086563,3.3708,148.34,148.32,9.33]
[1727168088464,18.37495791,148.34,148.32,9.33]
[1727168088769,3.3708,148.34,148.32,9.33]
[1727168089473,250.9846,148.5,148.33,9.33]
[1727168089663,9.33,148.44,148.4,9.33]
[1727168090058,3.3691,148.42,148.41,9.33]
[1727168092759,3.3688,148.43,148.41,9.33]
[1727168092964,3.3688,148.43,148.42,9.33]
[1727168093762,3.3688,148.43,148.41,9.33]
[1727168098174,3.3688,148.43,148.42,9.33]
[1727168098568,3.3685,148.44,148.42,9.33]
[1727168098770,4.72054661,148.48,148.42,9.33]
[1727168099073,1.4007,148.48,148.44,9.33]
[1727168099474,9.33,148.5,148.44,9.33]
[1727168099676,3.3797273,148.49,148.44,9.33]
[1727168100263,3.3682,148.46,148.44,9.33]
[1727168100690,3.3797273,148.49,148.44,9.33]
[1727168100874,3.368,148.47,148.44,9.33]
[1727168101070,9.33,148.5,148.44,9.33]
[1727168101071,3.45084043,148.49,148.44,9.33]
[1727168101279,3.45084043,148.49,148.45,9.33]
[1727168101481,3.368,148.46,148.45,9.33]
[1727168101978,3.3677,148.48,148.45,9.33]
[1727168102165,1.3487,148.53,148.47,9.33]
[1727168102364,3.367,148.51,148.47,9.33]
[1727168102580,3.40184968,148.51,148.47,9.33]
[1727168103371,3.3676,148.49,148.47,9.33]
[1727168103572,3.34287755,148.51,148.47,9.33]
[1727168104077,3.3676,148.49,148.47,9.33]
[1727168104268,9.33,148.52,148.47,9.33]
[1727168104469,9.33,148.5,148.45,9.33]
[1727168104680,3.3677,148.48,148.45,9.33]
[1727168104880,3.29266699,148.51,148.35,80.9]
[1727168105073,9.33,148.48,148.44,9.33]
[1727168105384,3.368,148.47,148.44,9.33]
[1727168105978,3.368,148.46,148.44,9.33]
[1727168106483,3.368,148.46,148.45,9.33]
[1727168106982,3.3679,148.47,148.45,9.33]
[1727168108279,3.368,148.46,148.45,9.33]
[1727168111080,3.368,148.46,148.44,9.33]
[1727168111776,3.368,148.46,148.36,80.86]
[1727168111777,9.33,148.46,148.36,84.26218667]
[1727168111972,9.33,148.46,148.4,9.33]
[1727168112171,3.3688,148.43,148.41,9.33]
[1727168112367,9.33,148.46,148.36,84.26218667]
[1727168112573,12.72444594,148.46,148.41,9.33]
[1727168113172,3.3689,148.42,148.41,9.33]
[1727168113872,10.6587,148.47,148.41,9.33]
[1727168114069,1.3287,148.47,148.43,9.33]
[1727168114577,3.3684,148.45,148.43,9.33]
[1727168114771,1.3287,148.47,148.43,9.33]
[1727168114974,10.6587,148.47,148.36,84.24332434]
[1727168115175,9.33,148.46,148.41,9.33]
[1727168115478,3.3686,148.44,148.42,9.33]
[1727168115877,10.6587,148.47,148.42,9.33]
[1727168116279,9.33,148.43,148.35,1.321]
[1727168116477,1.3287,148.47,148.36,9.33]
[1727168116478,9.33,148.41,148.36,9.33]
[1727168116675,3.3698,148.39,148.36,9.33]
[1727168117875,3.3698,148.39,148.36,12.7003]
[1727168118281,3.3699,148.38,148.35,19.2514]
[1727168118587,14.56,148.44,148.35,15.881]
[1727168118787,1.3287,148.47,148.35,1.321]
[1727168118988,14.56,148.44,148.35,19.2513]
[1727168119481,14.56,148.42,148.28,84.19175962]
[1727168119684,17.2898,148.41,148.31,14.56]
[1727168119889,2.7298,148.41,148.29,4.0382]
[1727168120074,14.56,148.4,148.31,14.56]
[1727168120276,2.7298,148.41,148.33,14.56]
[1727168120476,4.78444747,148.48,148.36,14.56]
[1727168120689,1.4035,148.47,148.39,14.56]
[1727168121083,3.3686,148.44,148.39,14.56]
[1727168121589,3.3686,148.44,148.4,3.3692]
[1727168123789,3.3688,148.43,148.39,17.9295]
[1727168124793,3.3688,148.43,148.4,3.3694]
[1727168125292,3.3686,148.44,148.39,14.56]
[1727168125696,3.3686,148.44,148.41,3.369]
[1727168126690,3.3685,148.45,148.41,14.56]
[1727168127299,3.3685,148.45,148.43,3.3687]
[1727168127495,3.3679,148.47,148.43,14.56]
[1727168127797,3.3679,148.47,148.44,3.3684]
[1727168130197,1.3263,148.5,148.44,3.3684]
[1727168130592,224.0,148.58,148.47,14.56]
[1727168130899,224.0,148.58,148.4,14.56]
[1727168130900,1.398,148.56,148.49,14.56]
[1727168131098,1.398,148.56,148.51,3.3669]
[1727168131293,1.398,148.56,148.4,14.56]
[1727168131294,1.398,148.56,148.47,14.56]
[1727168131500,15.958,148.56,148.47,14.56]
[1727168131798,1.398,148.56,148.47,14.56]
[1727168132100,1.398,148.56,148.49,3.3673]
[1727168132602,3.3664,148.54,148.49,3.3673]
[1727168132799,61.93872607,148.59,148.51,14.56]
[1727168133092,76.49872607,148.59,148.49,14.56]
[1727168133600,76.49872607,148.59,148.5,3.3671]
[1727168134095,76.49872607,148.59,148.51,14.56]
[1727168134096,3.35457119,148.59,148.51,14.56]
[1727168134599,1.3927,148.6,148.51,14.56]
[1727168135098,4.80292784,148.6,148.51,14.56]
[1727168135298,3.3662,148.55,148.51,14.56]
[1727168135598,4.80292784,148.6,148.51,14.56]
[1727168135798,3.366,148.56,148.51,17.9267]
[1727168135996,14.56,148.59,148.51,17.9267]
[1727168136197,14.56,148.57,148.48,1.4072]
[1727168136800,3.3664,148.54,148.49,3.3673]
[1727168137296,14.56,148.57,148.49,3.3673]
[1727168137491,3.3666,148.53,148.49,3.3673]
[1727168138201,3.3667,148.52,148.48,19.3348]
[1727168138398,14.56,148.55,148.48,1.4072]
[1727168139603,14.56,148.55,148.46,14.56]
[1727168140501,4.80292784,148.6,148.48,14.56]
[1727168140502,14.56,148.57,148.48,14.56]
[1727168140801,4.80292784,148.6,148.48,14.56]
[1727168141002,4.80292784,148.6,148.52,17.9265]
[1727168141404,4.80292784,148.6,148.52,14.56]
[1727168141597,4.80292784,148.6,148.52,17.9265]
[1727168142203,3.3658,148.56,148.52,17.9265]
[1727168142407,4.80292784,148.6,148.53,3.3664]
[1727168142899,3.3657,148.57,148.53,3.3664]
[1727168143100,4.80292784,148.6,148.52,17.9266]
[1727168143899,3.3657,148.57,148.52,17.9266]
[1727168144300,4.80292784,148.6,148.52,14.56]
[1727168144606,3.3654,148.58,148.52,14.56]
[1727168144901,3.3654,148.58,148.54,3.3661]
[1727168146208,1.3927,148.6,148.53,3.3664]
[1727168146902,3.3657,148.57,148.53,3.3664]
[1727168147207,1.3927,148.6,148.54,3.3662]
[1727168147603,3.3655,148.58,148.54,3.3662]
[1727168148105,3.3655,148.57,148.53,3.3664]
[1727168148607,3.3657,148.57,148.53,3.3664]
[1727168149408,3.3655,148.58,148.54,3.366]
[1727168149914,3.3655,148.58,148.54,14.56]
[1727168150306,3.365,148.6,148.54,14.56]
[1727168150505,3.365,148.6,148.54,15.907]
[1727168151207,3.3647,148.61,148.57,3.3653]
[1727168151411,3.3647,148.61,148.55,14.56]
[1727168152002,3.3649,148.6,148.57,3.3654]
[1727168152206,14.56,148.63,148.54,15.907]
[1727168152406,9.31,148.61,148.56,9.31]
[1727168152710,3.3652,148.59,148.56,9.31]
[1727168153109,9.31,148.61,148.56,9.31]
[1727168153612,3.3652,148.59,148.56,9.31]
[1727168154812,9.31,148.61,148.53,2.658]
[1727168155008,9.31,148.59,148.53,10.6779]
[1727168155411,3.3657,148.57,148.55,9.31]
[1727168155610,9.31,148.6,148.55,9.31]
[1727168156117,3.3654,148.58,148.55,9.31]
[1727168156315,3.3654,148.58,148.53,15.9179]
[1727168157212,3.3654,148.58,148.55,3.366]
[1727168157412,3.3654,148.58,148.53,15.9179]
[1727168158110,3.3654,148.58,148.54,3.3661]
[1727168158514,3.3654,148.58,148.55,3.366]
[1727168159915,4.80434784,148.65,148.55,14.55]
[1727168159916,14.55,148.64,148.55,14.55]
[1727168160110,14.29528766,148.63,148.55,14.55]
[1727168160418,14.29528766,148.63,148.55,17.9159]
[1727168160719,14.55,148.62,148.53,15.9179]
[1727168160910,14.55,148.62,148.53,19.2843]
[1727168161518,14.55,148.62,148.53,1.3679]
[1727168162018,3.3656,148.57,148.53,4.7343]
[1727168163615,14.55,148.62,148.53,1.3679]
[1727168164112,3.366,148.55,148.53,1.3679]
[1727168164312,14.55,148.6,148.51,17.9168]
[1727168164813,3.3662,148.54,148.51,3.3668]
[1727168165914,3.29393205,148.57,148.48,14.55]
[1727168166119,14.55,148.59,148.48,14.55]
[1727168166120,2.7578,148.58,148.48,14.55]
[1727168166423,3.36464619,148.57,148.5,14.55]
[1727168167618,3.366,148.55,148.51,3.3668]
[1727168167921,3.366,148.55,148.5,14.55]
[1727168168314,3.3662,148.54,148.51,3.3668]
[1727168168512,2.7578,148.58,148.5,14.55]
[1727168169826,3.3662,148.54,148.51,3.3668]
[1727168171516,3.31884737,148.57,148.5,17.917]
[1727168171517,3.3666,148.53,148.5,17.917]
[1727168172316,3.3661,148.55,148.5,14.55]
[1727168173123,3.366,148.56,148.5,14.55]
[1727168173318,3.41561153,148.57,148.5,14.55]
[1727168173521,2.7578,148.58,148.48,14.55]
[1727168173820,14.55,148.57,148.47,1.3641]
[1727168174026,14.55,148.55,148.47,1.3641]
[1727168174213,3.3668,148.52,148.48,17.9174]
[1727168174414,3.3668,148.52,148.48,14.55]
[1727168174819,3.30145474,148.55,148.48,14.55]
[1727168175024,14.55,148.57,148.48,14.55]
[1727168175425,17.88613954,148.57,148.49,3.3672]
[1727168176625,3.3666,148.53,148.5,3.3671]
[1727168177127,17.88613954,148.57,148.49,3.3673]
[1727168177128,3.3667,148.52,148.49,3.3673]
[1727168177927,3.3669,148.51,148.48,17.9175]
[1727168178329,3.3669,148.51,148.49,9.32]
[1727168178726,9.32,148.52,148.47,1.3641]
[1727168178923,9.32,148.52,148.47,10.6841]
[1727168179122,3.3673,148.5,148.47,10.6841]
[1727168179732,3.3673,148.5,148.48,9.32]
[1727168179929,3.3669,148.51,148.48,9.32]
[1727168180225,9.32,148.53,148.48,9.32]
[1727168180429,3.3671,148.51,148.48,9.32]
[1727168180635,9.32,148.53,148.48,9.32]
[1727168182932,4.0977,148.58,148.49,9.32]
[1727168183132,3.3666,148.53,148.5,9.32]
[1727168183824,9.32,148.55,148.49,9.32]
[1727168183825,9.32,148.54,148.49,9.32]